[Event "Titled Tuesday Blitz May 24 Late 2022"]
[White "Shirov, Alexei"]
[Black "Golubev, Mikhail"]
[WhiteFideId "2209390"]
[BlackFideId "14100983"]
[WhiteElo "2678"]
[BlackElo "2374"]
[Result "1-0"]
[Round "04"]
[TimeControl "180+1"]
[Date "2022.05.24"]
[WhiteClock "0:01:18"]
[BlackClock "0:00:06"]

1. e4 {[%clk 0:03:00]}  c5 {[%clk 0:02:59]} 2. Nf3 {[%clk 0:03:00]}  d6 {[%clk 0:03:00]} 3. d4 {[%clk 0:03:01]}  cxd4 {[%clk 0:03:00]} 4. Nxd4 {[%clk 0:03:01]}  Nf6 {[%clk 0:03:00]} 5. Nc3 {[%clk 0:03:02]}  g6 {[%clk 0:03:00]} 6. Be3 {[%clk 0:03:02]}  Bg7 {[%clk 0:03:00]} 7. f3 {[%clk 0:03:02]}  Nc6 {[%clk 0:03:01]} 8. Qd2 {[%clk 0:03:02]}  O-O {[%clk 0:03:00]} 9. O-O-O {[%clk 0:03:02]}  d5 {[%clk 0:03:00]} 10. exd5 {[%clk 0:03:01]}  Nxd5 {[%clk 0:03:00]} 11. Nxc6 {[%clk 0:03:02]}  bxc6 {[%clk 0:03:00]} 12. Bd4 {[%clk 0:03:02]}  e5 {[%clk 0:02:58]} 13. Bc5 {[%clk 0:03:02]}  Re8 {[%clk 0:02:55]} 14. Ne4 {[%clk 0:02:45]}  Qc7 {[%clk 0:02:53]} 15. Bc4 {[%clk 0:02:41]}  Be6 {[%clk 0:02:46]} 16. Bb3 {[%clk 0:02:40]}  a5 {[%clk 0:02:32]} 17. a4 {[%clk 0:02:39]}  h6 {[%clk 0:02:06]} 18. h4 {[%clk 0:02:37]}  f5 {[%clk 0:02:00]} 19. Nd6 {[%clk 0:02:36]}  Red8 {[%clk 0:01:55]} 20. Nc4 {[%clk 0:02:33]}  Rd7 {[%clk 0:01:28]} 21. Nb6 {[%clk 0:02:27]}  Rad8 {[%clk 0:01:12]} 22. Nxd7 {[%clk 0:02:23]}  Rxd7 {[%clk 0:01:13]} 23. Rhe1 {[%clk 0:02:17]}  Kh7 {[%clk 0:01:09]} 24. Qf2 {[%clk 0:02:11]}  Qb8 {[%clk 0:01:01]} 25. h5 {[%clk 0:02:02]}  g5 {[%clk 0:00:58]} 26. Rd2 {[%clk 0:01:55]}  Rb7 {[%clk 0:00:58]} 27. Rd3 {[%clk 0:01:38]}  Nf4 {[%clk 0:00:42]} 28. Bxe6 {[%clk 0:01:36]}  Nxe6 {[%clk 0:00:16]} 29. Bd6 {[%clk 0:01:36]}  Qh8 {[%clk 0:00:11]} 30. g4 {[%clk 0:01:27]}  e4 {[%clk 0:00:10]} 31. fxe4 {[%clk 0:01:27]}  Bxb2+ {[%clk 0:00:09]} 32. Kd1 {[%clk 0:01:27]}  f4 {[%clk 0:00:09]} 33. e5 {[%clk 0:01:21]}  Qg8 {[%clk 0:00:07]} 34. Qf3 {[%clk 0:01:19]}  Kh8 {[%clk 0:00:06]} 35. Qxc6 {[%clk 0:01:18]} 1-0


[Site "https://www.chess.com"]

[Event "Titled Tuesday Blitz May 24 Late 2022"]
[White "Shuvalova, Polina"]
[Black "Sjugirov, Sanan"]
[WhiteFideId "24171760"]
[BlackFideId "4189302"]
[WhiteElo "2355"]
[BlackElo "2602"]
[Result "1/2-1/2"]
[Round "04"]
[TimeControl "180+1"]
[Date "2022.05.24"]
[WhiteClock "0:00:55"]
[BlackClock "0:00:25"]

1. e4 {[%clk 0:03:00]}  c5 {[%clk 0:02:59]} 2. Nc3 {[%clk 0:02:59]}  a6 {[%clk 0:02:57]} 3. Nge2 {[%clk 0:02:56]}  b5 {[%clk 0:02:56]} 4. g3 {[%clk 0:02:54]}  Bb7 {[%clk 0:02:55]} 5. Bg2 {[%clk 0:02:54]}  e6 {[%clk 0:02:53]} 6. O-O {[%clk 0:02:53]}  d6 {[%clk 0:02:47]} 7. f4 {[%clk 0:02:53]}  Qc7 {[%clk 0:02:44]} 8. d3 {[%clk 0:02:52]}  Be7 {[%clk 0:02:42]} 9. f5 {[%clk 0:02:52]}  e5 {[%clk 0:02:37]} 10. g4 {[%clk 0:02:42]}  h6 {[%clk 0:02:09]} 11. Ng3 {[%clk 0:02:40]}  Bg5 {[%clk 0:02:04]} 12. a4 {[%clk 0:02:28]}  b4 {[%clk 0:02:03]} 13. Nd5 {[%clk 0:02:28]}  Bxd5 {[%clk 0:02:02]} 14. exd5 {[%clk 0:02:28]}  Nf6 {[%clk 0:02:00]} 15. Ne4 {[%clk 0:02:27]}  Nxe4 {[%clk 0:01:59]} 16. Bxe4 {[%clk 0:02:23]}  Nd7 {[%clk 0:01:57]} 17. b3 {[%clk 0:02:21]}  Qd8 {[%clk 0:01:53]} 18. Qf3 {[%clk 0:02:18]}  Bxc1 {[%clk 0:01:49]} 19. Raxc1 {[%clk 0:02:18]}  Qh4 {[%clk 0:01:49]} 20. Qg3 {[%clk 0:02:16]}  Qxg3+ {[%clk 0:01:48]} 21. hxg3 {[%clk 0:02:17]}  Nf6 {[%clk 0:01:44]} 22. Bf3 {[%clk 0:02:17]}  Ke7 {[%clk 0:01:42]} 23. Kf2 {[%clk 0:02:16]}  g6 {[%clk 0:01:26]} 24. fxg6 {[%clk 0:02:03]}  fxg6 {[%clk 0:01:27]} 25. Rh1 {[%clk 0:02:02]}  Kf7 {[%clk 0:01:21]} 26. Kg2 {[%clk 0:02:01]}  Kg7 {[%clk 0:01:20]} 27. Rcf1 {[%clk 0:02:01]}  Raf8 {[%clk 0:01:19]} 28. Rf2 {[%clk 0:02:01]}  Nh7 {[%clk 0:01:16]} 29. Be4 {[%clk 0:01:59]}  a5 {[%clk 0:01:08]} 30. Rhf1 {[%clk 0:01:58]}  Rxf2+ {[%clk 0:01:07]} 31. Rxf2 {[%clk 0:01:59]}  Rf8 {[%clk 0:01:05]} 32. Re2 {[%clk 0:01:50]}  Kf6 {[%clk 0:01:04]} 33. Re3 {[%clk 0:01:18]}  Kg5 {[%clk 0:01:03]} 34. Bf3 {[%clk 0:01:18]}  Nf6 {[%clk 0:00:58]} 35. Kh3 {[%clk 0:01:17]}  Rh8 {[%clk 0:00:53]} 36. Re1 {[%clk 0:01:15]}  Rh7 {[%clk 0:00:51]} 37. Re2 {[%clk 0:01:14]}  Rc7 {[%clk 0:00:49]} 38. Re1 {[%clk 0:01:13]}  Rc8 {[%clk 0:00:49]} 39. Re2 {[%clk 0:01:14]}  Rf8 {[%clk 0:00:49]} 40. Re3 {[%clk 0:01:14]}  Nh7 {[%clk 0:00:28]} 41. Kg2 {[%clk 0:01:12]}  Rf7 {[%clk 0:00:28]} 42. Kh3 {[%clk 0:01:11]}  Kf6 {[%clk 0:00:28]} 43. Kg2 {[%clk 0:01:11]}  Ng5 {[%clk 0:00:27]} 44. Be2 {[%clk 0:01:00]}  Kg7 {[%clk 0:00:27]} 45. Bd1 {[%clk 0:01:00]}  Rf8 {[%clk 0:00:26]} 46. Be2 {[%clk 0:01:00]}  Nh7 {[%clk 0:00:25]} 47. Bf3 {[%clk 0:00:59]}  Kf6 {[%clk 0:00:25]} 48. Re2 {[%clk 0:00:54]}  Kg5 {[%clk 0:00:25]} 49. Re3 {[%clk 0:00:55]} 1/2-1/2


[Site "https://www.chess.com"]

[Event "Titled Tuesday Blitz May 24 Late 2022"]
[White "Stevens, Christian"]
[Black "Sokolovsky, Yahli"]
[WhiteFideId "2604450"]
[BlackFideId "2820242"]
[WhiteElo "2542"]
[BlackElo "1770"]
[Result "1-0"]
[Round "04"]
[TimeControl "180+1"]
[Date "2022.05.25"]
[WhiteClock "0:00:18"]
[BlackClock "0:00:10"]

1. Nf3 {[%clk 0:02:56]}  g6 {[%clk 0:02:59]} 2. c4 {[%clk 0:02:56]}  Bg7 {[%clk 0:02:59]} 3. e4 {[%clk 0:02:56]}  c5 {[%clk 0:02:59]} 4. d4 {[%clk 0:02:56]}  cxd4 {[%clk 0:02:59]} 5. Nxd4 {[%clk 0:02:57]}  Nc6 {[%clk 0:03:00]} 6. Be3 {[%clk 0:02:55]}  d6 {[%clk 0:02:49]} 7. Nc3 {[%clk 0:02:54]}  Nf6 {[%clk 0:02:49]} 8. Be2 {[%clk 0:02:53]}  O-O {[%clk 0:02:48]} 9. Qd2 {[%clk 0:02:53]}  Ng4 {[%clk 0:02:45]} 10. Bxg4 {[%clk 0:02:52]}  Bxg4 {[%clk 0:02:46]} 11. f3 {[%clk 0:02:52]}  Bd7 {[%clk 0:02:45]} 12. b3 {[%clk 0:02:50]}  Qa5 {[%clk 0:02:40]} 13. Rc1 {[%clk 0:02:49]}  Rac8 {[%clk 0:02:27]} 14. O-O {[%clk 0:02:47]}  Nxd4 {[%clk 0:02:03]} 15. Bxd4 {[%clk 0:02:46]}  b5 {[%clk 0:02:03]} 16. Bxg7 {[%clk 0:02:39]}  Kxg7 {[%clk 0:02:04]} 17. Qd4+ {[%clk 0:02:38]}  Kg8 {[%clk 0:02:04]} 18. Nd5 {[%clk 0:02:03]}  Rfe8 {[%clk 0:02:04]} 19. cxb5 {[%clk 0:01:54]}  Qxa2 {[%clk 0:01:19]} 20. Rxc8 {[%clk 0:01:33]}  Bxc8 {[%clk 0:01:20]} 21. Rc1 {[%clk 0:01:08]}  Be6 {[%clk 0:01:20]} 22. Nc7 {[%clk 0:00:28]}  Rc8 {[%clk 0:01:19]} 23. Ra1 {[%clk 0:00:28]}  Qxb3 {[%clk 0:01:17]} 24. Qxa7 {[%clk 0:00:20]}  Bc4 {[%clk 0:00:21]} 25. b6 {[%clk 0:00:20]}  Qe3+ {[%clk 0:00:22]} 26. Kh1 {[%clk 0:00:19]}  Rd8 {[%clk 0:00:09]} 27. b7 {[%clk 0:00:19]}  Qxa7 {[%clk 0:00:09]} 28. Rxa7 {[%clk 0:00:18]}  Rb8 {[%clk 0:00:10]} 29. Ra8 {[%clk 0:00:18]} 1-0


[Site "https://www.chess.com"]

[Event "Titled Tuesday Blitz May 24 Late 2022"]
[White "Tanenbaum, Zachary"]
[Black "Papp, Petra"]
[WhiteFideId "2060850"]
[BlackFideId "739049"]
[WhiteElo "2168"]
[BlackElo "2259"]
[Result "1-0"]
[Round "04"]
[TimeControl "180+1"]
[Date "2022.05.25"]
[WhiteClock "0:00:11"]
[BlackClock "0:00:01"]

1. e4 {[%clk 0:03:00]}  c5 {[%clk 0:02:58]} 2. Nf3 {[%clk 0:03:00]}  d6 {[%clk 0:02:58]} 3. d4 {[%clk 0:03:01]}  cxd4 {[%clk 0:02:58]} 4. Nxd4 {[%clk 0:03:02]}  Nf6 {[%clk 0:02:58]} 5. Nc3 {[%clk 0:03:02]}  a6 {[%clk 0:02:59]} 6. Be3 {[%clk 0:03:03]}  e5 {[%clk 0:02:58]} 7. Nb3 {[%clk 0:03:03]}  Be7 {[%clk 0:02:59]} 8. h3 {[%clk 0:03:03]}  O-O {[%clk 0:02:59]} 9. f4 {[%clk 0:03:04]}  a5 {[%clk 0:02:58]} 10. Bb5 {[%clk 0:02:42]}  exf4 {[%clk 0:02:55]} 11. Bxf4 {[%clk 0:02:42]}  Nc6 {[%clk 0:02:56]} 12. Qe2 {[%clk 0:02:31]}  Bd7 {[%clk 0:02:39]} 13. O-O-O {[%clk 0:02:30]}  Re8 {[%clk 0:02:31]} 14. Bxd6 {[%clk 0:02:00]}  Bxd6 {[%clk 0:02:30]} 15. Rxd6 {[%clk 0:02:01]}  Qb6 {[%clk 0:02:27]} 16. Qd2 {[%clk 0:01:29]}  Be6 {[%clk 0:02:23]} 17. e5 {[%clk 0:01:25]}  Nd7 {[%clk 0:01:11]} 18. Bxc6 {[%clk 0:00:50]}  bxc6 {[%clk 0:01:04]} 19. Rxd7 {[%clk 0:00:49]}  Bxd7 {[%clk 0:01:02]} 20. Qxd7 {[%clk 0:00:50]}  Rxe5 {[%clk 0:01:02]} 21. Qd4 {[%clk 0:00:47]}  Qc7 {[%clk 0:01:01]} 22. Rd1 {[%clk 0:00:44]}  Rae8 {[%clk 0:01:00]} 23. Qd6 {[%clk 0:00:35]}  Qb6 {[%clk 0:00:54]} 24. Nd4 {[%clk 0:00:35]}  h6 {[%clk 0:00:50]} 25. Qxc6 {[%clk 0:00:33]}  Qb4 {[%clk 0:00:47]} 26. a3 {[%clk 0:00:32]}  Qe7 {[%clk 0:00:46]} 27. Qc4 {[%clk 0:00:28]}  Rc5 {[%clk 0:00:45]} 28. Qd3 {[%clk 0:00:24]}  Rec8 {[%clk 0:00:40]} 29. Nf5 {[%clk 0:00:23]}  Qg5+ {[%clk 0:00:38]} 30. Ne3 {[%clk 0:00:22]}  g6 {[%clk 0:00:31]} 31. Kb1 {[%clk 0:00:22]}  Rb8 {[%clk 0:00:29]} 32. Ne4 {[%clk 0:00:21]}  Qe5 {[%clk 0:00:27]} 33. Qd4 {[%clk 0:00:21]}  Rcb5 {[%clk 0:00:22]} 34. Qxe5 {[%clk 0:00:21]}  Rxe5 {[%clk 0:00:22]} 35. Ng4 {[%clk 0:00:17]}  Re7 {[%clk 0:00:17]} 36. Ngf6+ {[%clk 0:00:16]}  Kg7 {[%clk 0:00:14]} 37. c4 {[%clk 0:00:15]}  Reb7 {[%clk 0:00:12]} 38. Rd2 {[%clk 0:00:15]}  g5 {[%clk 0:00:12]} 39. Rc2 {[%clk 0:00:14]}  Kg6 {[%clk 0:00:11]} 40. c5 {[%clk 0:00:13]}  Kf5 {[%clk 0:00:11]} 41. Nd6+ {[%clk 0:00:09]}  Kxf6 {[%clk 0:00:10]} 42. Nxb7 {[%clk 0:00:10]}  Rxb7 {[%clk 0:00:11]} 43. c6 {[%clk 0:00:10]}  Rc7 {[%clk 0:00:10]} 44. b4 {[%clk 0:00:11]}  axb4 {[%clk 0:00:05]} 45. axb4 {[%clk 0:00:12]}  Rc8 {[%clk 0:00:04]} 46. b5 {[%clk 0:00:11]}  Ke6 {[%clk 0:00:01]} 47. b6 {[%clk 0:00:11]}  Kd6 {[%clk 0:00:01]} 48. c7 {[%clk 0:00:11]} 1-0


[Site "https://www.chess.com"]

[Event "Titled Tuesday Blitz May 24 Late 2022"]
[White "Toncheva, Nadya"]
[Black "Burke, Paul"]
[WhiteFideId "2924056"]
[BlackFideId "2605767"]
[WhiteElo "1888"]
[BlackElo "1845"]
[Result "1-0"]
[Round "04"]
[TimeControl "180+1"]
[Date "2022.05.25"]
[WhiteClock "0:01:46"]
[BlackClock "0:00:48"]

1. e4 {[%clk 0:03:00]}  e5 {[%clk 0:02:59]} 2. Nf3 {[%clk 0:02:59]}  Nc6 {[%clk 0:02:59]} 3. Bc4 {[%clk 0:02:57]}  Be7 {[%clk 0:02:59]} 4. d4 {[%clk 0:02:56]}  exd4 {[%clk 0:02:58]} 5. c3 {[%clk 0:02:56]}  d6 {[%clk 0:02:49]} 6. cxd4 {[%clk 0:02:53]}  Nf6 {[%clk 0:02:49]} 7. Nc3 {[%clk 0:02:53]}  O-O {[%clk 0:02:48]} 8. h3 {[%clk 0:02:53]}  Nxe4 {[%clk 0:02:47]} 9. Nxe4 {[%clk 0:02:44]}  d5 {[%clk 0:02:47]} 10. Bd3 {[%clk 0:02:43]}  dxe4 {[%clk 0:02:44]} 11. Bxe4 {[%clk 0:02:44]}  f5 {[%clk 0:02:44]} 12. Bxc6 {[%clk 0:02:42]}  bxc6 {[%clk 0:02:43]} 13. Qb3+ {[%clk 0:02:39]}  Kh8 {[%clk 0:02:42]} 14. O-O {[%clk 0:02:39]}  Ba6 {[%clk 0:02:22]} 15. Re1 {[%clk 0:02:37]}  Rb8 {[%clk 0:02:11]} 16. Qc2 {[%clk 0:02:37]}  Bf6 {[%clk 0:01:58]} 17. Be3 {[%clk 0:02:21]}  Qd5 {[%clk 0:01:48]} 18. b3 {[%clk 0:02:18]}  f4 {[%clk 0:01:27]} 19. Bxf4 {[%clk 0:02:15]}  Bxd4 {[%clk 0:01:21]} 20. Bxc7 {[%clk 0:02:09]}  Rbc8 {[%clk 0:01:06]} 21. Nxd4 {[%clk 0:02:06]}  Rxc7 {[%clk 0:00:58]} 22. Ne6 {[%clk 0:01:57]}  Rcf7 {[%clk 0:00:51]} 23. Nxf8 {[%clk 0:01:55]}  Rxf8 {[%clk 0:00:51]} 24. Rad1 {[%clk 0:01:55]}  Qf7 {[%clk 0:00:48]} 25. Re3 {[%clk 0:01:46]} 1-0


[Site "https://www.chess.com"]

[Event "Titled Tuesday Blitz May 24 Late 2022"]
[White "Vasquez Schroeder, Rodrigo"]
[Black "Jeet, Jain"]
[WhiteFideId "3400042"]
[BlackFideId "5073022"]
[WhiteElo "2567"]
[BlackElo "2028"]
[Result "1-0"]
[Round "04"]
[TimeControl "180+1"]
[Date "2022.05.24"]
[WhiteClock "0:01:21"]
[BlackClock "0:00:12"]

1. e4 {[%clk 0:03:00]}  d5 {[%clk 0:02:52]} 2. exd5 {[%clk 0:03:00]}  Qxd5 {[%clk 0:02:48]} 3. Nc3 {[%clk 0:03:00]}  Qd6 {[%clk 0:02:48]} 4. g3 {[%clk 0:03:00]}  Nf6 {[%clk 0:02:46]} 5. Bg2 {[%clk 0:03:01]}  e5 {[%clk 0:02:46]} 6. d3 {[%clk 0:03:01]}  Nc6 {[%clk 0:02:46]} 7. h3 {[%clk 0:03:01]}  Bd7 {[%clk 0:02:45]} 8. Nf3 {[%clk 0:03:01]}  O-O-O {[%clk 0:02:45]} 9. O-O {[%clk 0:03:01]}  h6 {[%clk 0:02:44]} 10. Nd2 {[%clk 0:03:01]}  Nd4 {[%clk 0:02:43]} 11. Nc4 {[%clk 0:03:00]}  Qe6 {[%clk 0:02:38]} 12. Re1 {[%clk 0:03:00]}  Bd6 {[%clk 0:02:36]} 13. f4 {[%clk 0:02:58]}  Bc5 {[%clk 0:02:07]} 14. Kh2 {[%clk 0:02:56]}  Nc6 {[%clk 0:01:48]} 15. fxe5 {[%clk 0:02:48]}  Nh7 {[%clk 0:01:41]} 16. Ne4 {[%clk 0:02:41]}  Bb6 {[%clk 0:01:35]} 17. Ned2 {[%clk 0:02:35]}  Ng5 {[%clk 0:01:34]} 18. h4 {[%clk 0:02:34]}  Nh3 {[%clk 0:01:31]} 19. Nxb6+ {[%clk 0:02:33]}  axb6 {[%clk 0:01:30]} 20. Qf3 {[%clk 0:02:29]}  g5 {[%clk 0:01:28]} 21. d4 {[%clk 0:02:27]}  g4 {[%clk 0:01:22]} 22. Qe4 {[%clk 0:02:24]}  Nf2 {[%clk 0:01:10]} 23. Qe3 {[%clk 0:02:21]}  Nh3 {[%clk 0:00:59]} 24. d5 {[%clk 0:02:20]}  Qf5 {[%clk 0:00:59]} 25. dxc6 {[%clk 0:02:19]}  Bxc6 {[%clk 0:01:00]} 26. Ne4 {[%clk 0:02:09]}  Qxe5 {[%clk 0:00:55]} 27. Qc3 {[%clk 0:02:08]}  Qf5 {[%clk 0:00:52]} 28. Rf1 {[%clk 0:02:01]}  Qe6 {[%clk 0:00:47]} 29. Rf6 {[%clk 0:01:56]}  Qe7 {[%clk 0:00:46]} 30. Rxc6 {[%clk 0:01:55]}  bxc6 {[%clk 0:00:45]} 31. Qxc6 {[%clk 0:01:55]}  f5 {[%clk 0:00:42]} 32. Nc3 {[%clk 0:01:50]}  f4 {[%clk 0:00:38]} 33. Qa8+ {[%clk 0:01:34]}  Kd7 {[%clk 0:00:38]} 34. Qa4+ {[%clk 0:01:34]}  Ke6 {[%clk 0:00:20]} 35. Bxf4 {[%clk 0:01:32]}  Kf7 {[%clk 0:00:18]} 36. Qc4+ {[%clk 0:01:30]}  Kg7 {[%clk 0:00:18]} 37. Rf1 {[%clk 0:01:28]}  Rhf8 {[%clk 0:00:17]} 38. Nd5 {[%clk 0:01:22]}  Qd7 {[%clk 0:00:14]} 39. Qc3+ {[%clk 0:01:21]}  Kg8 {[%clk 0:00:12]} 40. Nf6+ {[%clk 0:01:20]}  Rxf6 {[%clk 0:00:12]} 41. Qxf6 {[%clk 0:01:21]} 1-0


[Site "https://www.chess.com"]

[Event "Titled Tuesday Blitz May 24 Late 2022"]
[White "Vega Gutierrez, Sabrina"]
[Black "Djokic, Mihailo"]
[WhiteFideId "2219026"]
[BlackFideId "976440"]
[WhiteElo "2286"]
[BlackElo "2202"]
[Result "0-1"]
[Round "04"]
[TimeControl "180+1"]
[Date "2022.05.25"]
[WhiteClock "0:00:01"]
[BlackClock "0:00:21"]

1. e4 {[%clk 0:03:00]}  c5 {[%clk 0:03:00]} 2. Nf3 {[%clk 0:03:01]}  d6 {[%clk 0:03:00]} 3. d4 {[%clk 0:03:01]}  cxd4 {[%clk 0:03:01]} 4. Qxd4 {[%clk 0:03:00]}  a6 {[%clk 0:03:01]} 5. Be2 {[%clk 0:02:59]}  Nc6 {[%clk 0:03:01]} 6. Qe3 {[%clk 0:02:59]}  g6 {[%clk 0:03:02]} 7. O-O {[%clk 0:02:59]}  Bg7 {[%clk 0:03:02]} 8. h3 {[%clk 0:02:58]}  Nf6 {[%clk 0:03:02]} 9. Rd1 {[%clk 0:02:58]}  Qc7 {[%clk 0:02:57]} 10. c4 {[%clk 0:02:33]}  O-O {[%clk 0:02:55]} 11. Nc3 {[%clk 0:02:33]}  Be6 {[%clk 0:02:51]} 12. Nd5 {[%clk 0:02:24]}  Bxd5 {[%clk 0:02:11]} 13. exd5 {[%clk 0:02:25]}  Nb4 {[%clk 0:01:57]} 14. Nd4 {[%clk 0:02:03]}  a5 {[%clk 0:01:44]} 15. a3 {[%clk 0:01:46]}  Na6 {[%clk 0:01:43]} 16. Nb5 {[%clk 0:01:46]}  Qd7 {[%clk 0:01:39]} 17. Bd2 {[%clk 0:01:42]}  a4 {[%clk 0:01:37]} 18. Bc3 {[%clk 0:01:22]}  Rfe8 {[%clk 0:01:34]} 19. Qb6 {[%clk 0:01:10]}  Qd8 {[%clk 0:01:26]} 20. Qxd8 {[%clk 0:00:30]}  Rexd8 {[%clk 0:01:26]} 21. Re1 {[%clk 0:00:24]}  Nc5 {[%clk 0:01:17]} 22. Bf3 {[%clk 0:00:23]}  Kf8 {[%clk 0:01:10]} 23. Rad1 {[%clk 0:00:22]}  Rdc8 {[%clk 0:01:05]} 24. g4 {[%clk 0:00:21]}  Ne8 {[%clk 0:00:59]} 25. Bxg7+ {[%clk 0:00:20]}  Nxg7 {[%clk 0:01:00]} 26. Rd4 {[%clk 0:00:18]}  g5 {[%clk 0:00:49]} 27. Bd1 {[%clk 0:00:18]}  h6 {[%clk 0:00:47]} 28. Kg2 {[%clk 0:00:16]}  Ne8 {[%clk 0:00:40]} 29. f4 {[%clk 0:00:16]}  f6 {[%clk 0:00:39]} 30. fxg5 {[%clk 0:00:15]}  hxg5 {[%clk 0:00:39]} 31. Kg3 {[%clk 0:00:15]}  Nd7 {[%clk 0:00:32]} 32. Be2 {[%clk 0:00:13]}  Ne5 {[%clk 0:00:31]} 33. h4 {[%clk 0:00:12]}  gxh4+ {[%clk 0:00:31]} 34. Kxh4 {[%clk 0:00:12]}  Rc5 {[%clk 0:00:29]} 35. Kg3 {[%clk 0:00:12]}  Rac8 {[%clk 0:00:28]} 36. Rh1 {[%clk 0:00:05]}  Kg7 {[%clk 0:00:27]} 37. Nc3 {[%clk 0:00:02]}  Nxc4 {[%clk 0:00:26]} 38. Nxa4 {[%clk 0:00:01]}  R5c7 {[%clk 0:00:21]} 0-1


[Site "https://www.chess.com"]

[Event "Titled Tuesday Blitz May 24 Late 2022"]
[White "Wieczorek, Oskar"]
[Black "Yedidia, Daniel"]
[WhiteFideId "1133950"]
[BlackFideId "30905907"]
[WhiteElo "2330"]
[BlackElo "2576"]
[Result "1-0"]
[Round "04"]
[TimeControl "180+1"]
[Date "2022.05.24"]
[WhiteClock "0:00:24"]
[BlackClock "0:00:05"]

1. e4 {[%clk 0:03:00]}  e5 {[%clk 0:03:00]} 2. Nf3 {[%clk 0:03:01]}  Nc6 {[%clk 0:03:00]} 3. Nc3 {[%clk 0:03:01]}  Nf6 {[%clk 0:03:00]} 4. h3 {[%clk 0:03:02]}  Be7 {[%clk 0:02:55]} 5. d4 {[%clk 0:02:51]}  exd4 {[%clk 0:02:53]} 6. Nxd4 {[%clk 0:02:52]}  O-O {[%clk 0:02:52]} 7. Bb5 {[%clk 0:02:43]}  Re8 {[%clk 0:02:50]} 8. O-O {[%clk 0:02:43]}  Bc5 {[%clk 0:02:46]} 9. Nxc6 {[%clk 0:02:33]}  dxc6 {[%clk 0:02:35]} 10. Qxd8 {[%clk 0:02:30]}  Rxd8 {[%clk 0:02:36]} 11. Bd3 {[%clk 0:02:30]}  h6 {[%clk 0:02:36]} 12. e5 {[%clk 0:02:24]}  Nd5 {[%clk 0:02:25]} 13. Ne4 {[%clk 0:02:22]}  Bd4 {[%clk 0:02:23]} 14. a3 {[%clk 0:02:12]}  Bxe5 {[%clk 0:02:18]} 15. Re1 {[%clk 0:02:12]}  Bf4 {[%clk 0:02:09]} 16. h4 {[%clk 0:02:01]}  b6 {[%clk 0:01:56]} 17. g3 {[%clk 0:02:00]}  Bxc1 {[%clk 0:01:55]} 18. Raxc1 {[%clk 0:02:00]}  Be6 {[%clk 0:01:55]} 19. f4 {[%clk 0:01:59]}  c5 {[%clk 0:01:54]} 20. Kf2 {[%clk 0:01:55]}  Bd7 {[%clk 0:01:35]} 21. c4 {[%clk 0:01:42]}  Nf6 {[%clk 0:01:20]} 22. Nxf6+ {[%clk 0:01:42]}  gxf6 {[%clk 0:01:21]} 23. Be4 {[%clk 0:01:31]}  Rab8 {[%clk 0:01:17]} 24. Bd5 {[%clk 0:01:23]}  c6 {[%clk 0:01:16]} 25. Bf3 {[%clk 0:01:20]}  Kf8 {[%clk 0:01:02]} 26. g4 {[%clk 0:01:07]}  f5 {[%clk 0:00:59]} 27. g5 {[%clk 0:01:07]}  hxg5 {[%clk 0:00:57]} 28. fxg5 {[%clk 0:01:07]}  Rbc8 {[%clk 0:00:52]} 29. Red1 {[%clk 0:00:53]}  Be6 {[%clk 0:00:50]} 30. Ke3 {[%clk 0:00:54]}  Rxd1 {[%clk 0:00:45]} 31. Rxd1 {[%clk 0:00:55]}  Bxc4 {[%clk 0:00:42]} 32. Rd7 {[%clk 0:00:55]}  a5 {[%clk 0:00:30]} 33. Rb7 {[%clk 0:00:54]}  b5 {[%clk 0:00:29]} 34. h5 {[%clk 0:00:54]}  b4 {[%clk 0:00:26]} 35. h6 {[%clk 0:00:53]}  Bd5 {[%clk 0:00:20]} 36. g6 {[%clk 0:00:44]}  Kg8 {[%clk 0:00:15]} 37. Bh5 {[%clk 0:00:31]}  fxg6 {[%clk 0:00:13]} 38. Bxg6 {[%clk 0:00:32]}  c4 {[%clk 0:00:11]} 39. axb4 {[%clk 0:00:30]}  axb4 {[%clk 0:00:10]} 40. Rxb4 {[%clk 0:00:29]}  Bf7 {[%clk 0:00:10]} 41. Bxf5 {[%clk 0:00:28]}  Re8+ {[%clk 0:00:10]} 42. Kf4 {[%clk 0:00:29]}  Re1 {[%clk 0:00:05]} 43. Rb8+ {[%clk 0:00:28]}  Be8 {[%clk 0:00:05]} 44. Bg6 {[%clk 0:00:24]} 1-0


[Site "https://www.chess.com"]

[Event "Titled Tuesday Blitz May 24 Late 2022"]
[White "Wu, Derek"]
[Black "Blackman, Justin"]
[WhiteFideId "30914558"]
[BlackFideId "11100516"]
[WhiteElo "2071"]
[BlackElo "2112"]
[Result "1-0"]
[Round "04"]
[TimeControl "180+1"]
[Date "2022.05.25"]
[WhiteClock "0:00:20"]
[BlackClock "0:00:11"]

1. e4 {[%clk 0:02:42]}  e5 {[%clk 0:02:59]} 2. Nf3 {[%clk 0:02:42]}  Nc6 {[%clk 0:02:58]} 3. d4 {[%clk 0:02:41]}  exd4 {[%clk 0:02:58]} 4. Nxd4 {[%clk 0:02:42]}  Bc5 {[%clk 0:02:59]} 5. Nb3 {[%clk 0:02:41]}  Bb6 {[%clk 0:02:58]} 6. Nc3 {[%clk 0:02:42]}  Nf6 {[%clk 0:02:56]} 7. Bg5 {[%clk 0:02:39]}  h6 {[%clk 0:02:53]} 8. Bh4 {[%clk 0:02:39]}  d6 {[%clk 0:02:49]} 9. Bd3 {[%clk 0:02:37]}  Be6 {[%clk 0:02:32]} 10. Qd2 {[%clk 0:02:28]}  Ne5 {[%clk 0:02:27]} 11. O-O-O {[%clk 0:02:26]}  Ng6 {[%clk 0:02:25]} 12. Bg3 {[%clk 0:02:25]}  Qe7 {[%clk 0:02:22]} 13. f4 {[%clk 0:02:24]}  Bg4 {[%clk 0:02:22]} 14. Rde1 {[%clk 0:02:23]}  O-O-O {[%clk 0:01:55]} 15. h3 {[%clk 0:02:15]}  Bd7 {[%clk 0:01:52]} 16. Bh2 {[%clk 0:02:08]}  h5 {[%clk 0:01:49]} 17. e5 {[%clk 0:02:03]}  dxe5 {[%clk 0:01:48]} 18. fxe5 {[%clk 0:02:03]}  Ng8 {[%clk 0:01:20]} 19. Nd5 {[%clk 0:02:02]}  Qe8 {[%clk 0:01:15]} 20. c4 {[%clk 0:02:00]}  Be6 {[%clk 0:01:06]} 21. Qc3 {[%clk 0:01:41]}  Bxd5 {[%clk 0:00:53]} 22. cxd5 {[%clk 0:01:40]}  Rxd5 {[%clk 0:00:53]} 23. e6 {[%clk 0:01:37]}  Nf6 {[%clk 0:00:48]} 24. exf7 {[%clk 0:01:25]}  Qxf7 {[%clk 0:00:49]} 25. Bc4 {[%clk 0:01:25]}  Rhd8 {[%clk 0:00:48]} 26. Bxd5 {[%clk 0:01:21]}  Rxd5 {[%clk 0:00:48]} 27. Kb1 {[%clk 0:01:20]}  Ne7 {[%clk 0:00:46]} 28. Rhf1 {[%clk 0:01:16]}  Nf5 {[%clk 0:00:45]} 29. Re5 {[%clk 0:01:10]}  Rxe5 {[%clk 0:00:44]} 30. Qxe5 {[%clk 0:01:10]}  Nd6 {[%clk 0:00:44]} 31. Rc1 {[%clk 0:01:08]}  Kb8 {[%clk 0:00:42]} 32. Ka1 {[%clk 0:01:00]}  a6 {[%clk 0:00:43]} 33. Nc5 {[%clk 0:00:47]}  Bxc5 {[%clk 0:00:39]} 34. Qxc5 {[%clk 0:00:46]}  Nfe4 {[%clk 0:00:38]} 35. Qd4 {[%clk 0:00:43]}  Qf5 {[%clk 0:00:35]} 36. Bg1 {[%clk 0:00:42]}  b6 {[%clk 0:00:34]} 37. Qd3 {[%clk 0:00:41]}  Kb7 {[%clk 0:00:34]} 38. Qc2 {[%clk 0:00:40]}  Qd7 {[%clk 0:00:29]} 39. Rd1 {[%clk 0:00:39]}  Qe6 {[%clk 0:00:26]} 40. Bd4 {[%clk 0:00:38]}  g5 {[%clk 0:00:26]} 41. Rc1 {[%clk 0:00:38]}  Qd7 {[%clk 0:00:24]} 42. Qe2 {[%clk 0:00:38]}  g4 {[%clk 0:00:24]} 43. hxg4 {[%clk 0:00:35]}  hxg4 {[%clk 0:00:25]} 44. Be5 {[%clk 0:00:35]}  Qf5 {[%clk 0:00:21]} 45. Qc2 {[%clk 0:00:30]}  Qd7 {[%clk 0:00:16]} 46. Qd3 {[%clk 0:00:28]}  Qe6 {[%clk 0:00:15]} 47. Bf4 {[%clk 0:00:27]}  Nc5 {[%clk 0:00:12]} 48. Qd1 {[%clk 0:00:23]}  Nc4 {[%clk 0:00:11]} 49. Qe1 {[%clk 0:00:20]}  Qf5 {[%clk 0:00:11]} 50. Rxc4 {[%clk 0:00:19]}  Nd3 {[%clk 0:00:11]} 51. Qe4+ {[%clk 0:00:20]}  Qxe4 {[%clk 0:00:11]} 52. Rxe4 {[%clk 0:00:20]} 1-0


[Site "https://www.chess.com"]